bitfinex-derivatives/quotes_SOLF0:USTF0_20241002
["timestamp","ask_amount","ask_price","bid_price","bid_amount"]
[1727908212478,7.4837,140.21,140.15,1.12602]
[1727908213084,3.5676,140.18,140.15,4.69392]
[1727908213578,17.14,140.22,140.17,3.5674]
[1727908213579,3.5668,140.2,140.17,3.5674]
[1727908213879,23.32,140.24,140.15,18.26602]
[1727908214079,6.18,140.24,140.17,17.14]
[1727908214286,3.5665,140.22,140.19,3.567]
[1727908214775,6.18,140.24,140.19,3.567]
[1727908216480,23.32,140.24,140.15,18.26602]
[1727908216880,3.5674,140.18,140.15,1.12602]
[1727908217081,17.14,140.22,140.15,1.12602]
[1727908217278,17.14,140.2,140.15,1.12602]
[1727908217477,3.5678,140.16,140.15,1.12602]
[1727908218582,3.5683,140.14,140.13,1.001]
[1727908220086,3.5682,140.15,140.13,1.001]
[1727908220581,19.8016,140.19,140.13,1.001]
[1727908220767,3.5675,140.18,140.13,1.001]
[1727908220969,19.8016,140.19,140.13,1.001]
[1727908221383,18.5064,140.19,140.13,1.001]
[1727908221581,6.18,140.2,140.14,3.5683]
[1727908221884,3.5679,140.16,140.14,3.5683]
[1727908222484,3.5683,140.14,140.13,1.001]
[1727908223072,18.4479,140.19,140.13,1.001]
[1727908223284,3.5682,140.15,140.13,1.001]
[1727908224979,1.54902,140.21,140.13,1.001]
[1727908224980,18.68902,140.21,140.13,1.001]
[1727908225179,24.86902,140.21,140.13,1.001]
[1727908225581,3.5681,140.16,140.13,4.5695]
[1727908226586,3.5677,140.17,140.14,3.5682]
[1727908227283,3.5677,140.17,140.14,3.5683]
[1727908227881,3.5677,140.17,140.15,3.568]
[1727908228488,24.86902,140.21,140.13,1.001]
[1727908228686,3.5672,140.19,140.13,20.8779]
[1727908228893,6.30502,140.21,140.13,20.8779]
[1727908229390,3.5675,140.18,140.15,3.5679]
[1727908229584,3.5675,140.18,140.13,20.8779]
[1727908229991,3.5672,140.19,140.16,3.5677]
[1727908230377,3.5672,140.19,140.14,6.18]
[1727908230378,0.12502,140.21,140.14,6.18]
[1727908230695,3.5669,140.2,140.14,6.18]
[1727908231388,3.5669,140.2,140.17,3.5675]
[1727908232485,3.69172,140.21,140.19,3.567]
[1727908233596,0.12502,140.21,140.19,3.567]
[1727908233802,0.12502,140.27,140.19,20.75474662]
[1727908234089,0.12502,140.27,140.19,18.4764]
[1727908234090,3.5657,140.25,140.19,18.4764]
[1727908234290,3.5657,140.25,140.22,3.5662]
[1727908235186,3.5654,140.26,140.23,3.566]
[1727908235393,0.12502,140.27,140.21,17.14]
[1727908235594,0.12502,140.27,140.22,6.18]
[1727908235790,0.12502,140.27,140.23,3.5659]
[1727908235991,0.12502,140.27,140.22,6.18]
[1727908236398,3.69012,140.27,140.24,3.5656]
[1727908237399,0.12502,140.27,140.23,17.14]
[1727908237900,0.12502,140.27,140.25,3.5654]
[1727908240502,0.12502,140.27,140.26,3.5653]
[1727908242998,0.12502,140.27,140.26,9.7253]
[1727908246104,3.564,140.31,140.28,3.5647]
[1727908246398,17.26502,140.33,140.26,6.16]
[1727908246601,3.5645,140.3,140.27,3.5649]
[1727908247097,0.12502,140.33,140.24,6.16]
[1727908247305,3.5654,140.26,140.24,6.16]
[1727908247493,17.14,140.29,140.24,6.16]
[1727908248002,3.5652,140.27,140.24,9.7257]
[1727908250609,3.5649,140.28,140.25,3.5654]
[1727908250795,23.42502,140.33,140.24,6.16]
[1727908250996,17.26502,140.33,140.24,6.16]
[1727908251295,3.5641,140.31,140.28,3.5646]
[1727908251904,3.5647,140.29,140.27,6.16]
[1727908252905,3.5644,140.3,140.27,9.7249]
[1727908254401,17.26502,140.33,140.27,6.16]
[1727908254607,3.5648,140.28,140.27,6.16]
[1727908255607,3.5647,140.29,140.27,6.16]
[1727908257310,3.5647,140.29,140.27,9.7249]
[1727908257506,3.5647,140.29,140.28,10.94]
[1727908257814,3.5644,140.3,140.28,10.94]
[1727908257999,0.12502,140.33,140.29,10.94]
[1727908258205,3.564,140.32,140.3,10.94]
[1727908258510,0.12502,140.33,140.3,10.94]
[1727908258910,3.5638,140.32,140.3,10.94]
[1727908259209,0.12502,140.33,140.3,10.94]
[1727908259407,3.68862,140.33,140.31,10.94]
[1727908259609,0.12502,140.33,140.29,17.12]
[1727908259821,0.12502,140.33,140.28,3.5647]
[1727908260110,0.12502,140.33,140.27,23.28]
[1727908260304,0.12502,140.33,140.27,20.6849]
[1727908260508,17.12,140.32,140.25,7.4969]
[1727908260906,3.5647,140.29,140.27,3.565]
[1727908261415,3.5647,140.29,140.26,3.5651]
[1727908263523,17.12,140.3,140.22,1.366]
[1727908263728,17.12,140.26,140.21,0.12502]
[1727908263939,1.3975,140.31,140.21,0.12502]
[1727908263940,3.5663,140.22,140.21,0.12502]
[1727908272035,3.5663,140.23,140.21,0.12502]
[1727908272237,1.3628,140.25,140.21,0.12502]
[1727908272747,3.5663,140.22,140.21,0.12502]
[1727908273037,3.5663,140.22,140.15,0.12502]
[1727908273038,23.28,140.22,140.15,0.12502]
[1727908273337,3.5674,140.18,140.15,3.69292]
[1727908275830,3.5676,140.17,140.15,3.69292]
[1727908276035,23.28,140.22,140.16,3.5676]
[1727908276337,23.28,140.22,140.15,0.12502]
[1727908276535,3.567,140.2,140.17,3.5675]
[1727908276928,23.28,140.22,140.17,3.5675]
[1727908277230,3.5671,140.19,140.17,3.5675]
[1727908277433,7.5228,140.25,140.19,3.567]
[1727908277735,3.5662,140.23,140.17,17.12]
[1727908278133,3.5662,140.23,140.2,3.5667]
[1727908278323,3.5664,140.22,140.2,3.5667]
[1727908280537,0.12502,140.27,140.19,17.12]
[1727908280732,6.28502,140.27,140.22,3.5662]
[1727908280925,6.28502,140.27,140.19,17.12]
[1727908281131,3.5663,140.22,140.2,3.5666]
[1727908285841,6.28502,140.27,140.2,3.5666]
[1727908286044,3.5661,140.23,140.2,3.5666]
[1727908288240,6.28502,140.27,140.22,3.5663]
[1727908288748,6.28502,140.27,140.21,17.12]
[1727908288949,3.5657,140.25,140.23,3.566]
[1727908289142,6.28502,140.27,140.21,17.12]
[1727908289544,0.12502,140.27,140.21,17.12]
[1727908289847,0.12502,140.27,140.23,17.12]
[1727908290249,0.12502,140.27,140.23,20.6859]
[1727908290250,3.5653,140.26,140.23,20.6859]
[1727908290551,0.12502,140.27,140.22,6.16]
[1727908291243,0.12502,140.27,140.23,3.5659]
[1727908291750,3.5654,140.26,140.23,3.5659]
[1727908292146,3.5654,140.26,140.24,3.5658]
[1727908292649,3.5654,140.26,140.23,3.5659]
[1727908292948,0.12502,140.27,140.23,17.12]
[1727908293548,0.12502,140.27,140.24,10.95]
[1727908294551,3.5655,140.26,140.24,10.95]
[1727908295962,11.07502,140.27,140.22,6.16]
[1727908296452,3.5654,140.26,140.22,9.7262]
[1727908296649,11.07502,140.27,140.22,9.7262]
[1727908297048,3.5658,140.24,140.22,9.7262]
[1727908297652,3.5655,140.26,140.23,14.5158]
[1727908297860,0.12502,140.27,140.23,14.5158]
[1727908298562,3.5653,140.26,140.23,14.5158]
[1727908298958,0.12502,140.27,140.23,14.5158]
[1727908299160,3.5656,140.25,140.23,14.5158]
[1727908301860,0.12502,140.27,140.23,14.5158]
[1727908302047,3.5655,140.26,140.23,10.95]
[1727908302248,3.5655,140.26,140.24,3.5658]
[1727908303358,0.12502,140.27,140.25,14.5154]
[1727908303562,0.12502,140.27,140.22,6.16]
[1727908303563,0.12502,140.27,140.26,10.95]
[1727908303965,0.12502,140.27,140.26,14.5153]
[1727908304953,6.14,140.32,140.26,14.5153]
[1727908304954,0.12502,140.33,140.26,17.09]
[1727908305160,0.12502,140.33,140.32,10.95]
[1727908305458,0.12502,140.33,140.32,14.5138]
[1727908307565,0.12502,140.33,140.3,23.25]
[1727908308165,0.12502,140.33,140.3,6.14]
[1727908308364,3.5643,140.3,140.27,2.7655]
[1727908308566,0.12502,140.33,140.27,1.4101]
[1727908308860,0.12502,140.33,140.26,6.14]
[1727908308861,3.5649,140.28,140.26,6.14]
[1727908309467,3.5654,140.26,140.23,25.9457]
[1727908309667,9.70399661,140.32,140.23,25.9457]
[1727908309668,17.11,140.31,140.23,25.9457]
[1727908310765,3.5654,140.26,140.23,29.5116]
[1727908311471,3.5652,140.27,140.23,25.9457]
[1727908311768,6.26502,140.33,140.25,17.11]
[1727908311962,3.68872,140.33,140.27,17.11]
[1727908312162,3.68872,140.33,140.29,17.11]
[1727908312362,3.68872,140.33,140.3,3.5642]
[1727908312562,3.68872,140.33,140.29,17.11]
[1727908312770,0.12502,140.33,140.29,17.11]
[1727908312973,0.12502,140.33,140.3,17.11]
[1727908313372,0.12502,140.33,140.31,3.5638]
[1727908313676,0.12502,140.33,140.3,17.11]
[1727908313973,0.12502,140.33,140.31,3.564]
[1727908314383,0.12502,140.33,140.3,17.11]
[1727908314761,0.12502,140.33,140.31,3.564]
[1727908316073,3.68852,140.33,140.31,3.564]
[1727908317475,0.12502,140.33,140.31,3.564]
[1727908317977,0.12502,140.33,140.3,17.11]
[1727908318177,0.12502,140.33,140.32,3.5638]
[1727908319572,100.7004035,140.38,140.32,17.11]
[1727908319883,1.0,140.38,140.37,17.11]
[1727908320083,1.0,140.38,140.35,23.25]
[1727908320674,3.5625,140.37,140.35,6.14]
[1727908320881,1.0,140.38,140.35,6.14]
[1727908321373,4.5624,140.38,140.35,6.14]
[1727908321875,1.0,140.38,140.35,6.14]
[1727908322072,1.0,140.38,140.35,23.25]
[1727908322275,1.0,140.38,140.37,17.11]
[1727908322578,0.12502,140.39,140.38,3.5622]
[1727908324275,0.12502,140.39,140.37,20.6724]
[1727908324479,1.0,140.41,140.37,17.11]
[1727908324683,1.0,140.43,140.39,17.11]
[1727908324881,1.0,140.43,140.42,17.11]
[1727908325080,1.12502,140.45,140.42,17.11]
[1727908325081,1.12502,140.45,140.43,3.5608]
[1727908325281,1.12502,140.45,140.42,17.11]
[1727908325582,1.12502,140.45,140.43,3.5608]
[1727908330381,1.12502,140.45,140.4,23.25]
[1727908330577,1.12502,140.45,140.42,17.11]
[1727908330890,18.11,140.5,140.44,17.11]
[1727908330891,1.0,140.5,140.44,17.11]
[1727908331084,1.0,140.5,140.47,20.67]
[1727908331590,1.0,140.5,140.47,34.22]
[1727908331778,1.0,140.5,140.49,20.6695]
[1727908331980,1.0,140.5,140.49,26.7895]
[1727908333791,0.12502,140.51,140.5,3.5592]
[1727908334291,0.12518,140.52,140.51,3.5589]
[1727908334490,0.12518,140.52,140.51,20.6689]
[1727908336997,1.0,140.53,140.51,17.11]
[1727908337179,1.0,140.53,140.52,3.5587]
[1727908337786,1.0,140.53,140.45,0.12502]
[1727908338094,3.54896004,140.52,140.45,0.12502]
[1727908338295,18.11,140.53,140.45,0.12502]
[1727908338499,3.5598,140.48,140.45,0.12502]
[1727908338693,18.11,140.53,140.45,0.12502]
[1727908340292,3.56,140.47,140.45,0.12502]
[1727908340793,18.11,140.53,140.45,0.12502]
[1727908343299,3.56,140.47,140.45,0.12502]
[1727908343899,3.5602,140.46,140.45,0.12502]
[1727908344293,17.11,140.5,140.45,0.12502]
[1727908344498,6.12,140.51,140.45,0.12502]
[1727908345491,3.5594,140.5,140.45,0.12502]
[1727908345691,6.12,140.51,140.45,0.12502]
[1727908346404,3.7226,140.53,140.45,0.12502]
[1727908346802,3.7226,140.53,140.45,17.23502]
[1727908347103,1.0,140.53,140.45,17.23502]
[1727908347302,1.0,140.53,140.48,3.5595]
[1727908347502,1.0,140.53,140.48,6.12]
[1727908347900,3.559,140.51,140.48,9.6795]
[1727908350801,3.5589,140.52,140.49,3.5593]
[1727908351009,1.0,140.53,140.48,6.12]
[1727908351404,3.559,140.51,140.48,9.6796]
[1727908351803,3.5593,140.5,140.48,6.12]
[1727908352001,1.0,140.53,140.48,6.12]
[1727908353005,3.5588,140.52,140.48,6.12]
[1727908353201,1.0,140.53,140.48,6.12]
[1727908353710,3.5591,140.51,140.48,9.6797]
[1727908355212,3.5588,140.52,140.49,3.5594]
[1727908356915,1.0,140.53,140.49,3.5594]
[1727908357606,3.5588,140.52,140.49,3.5594]
[1727908358116,1.0,140.53,140.5,3.559]
[1727908358710,4.5586,140.53,140.5,3.559]
[1727908360108,4.5586,140.53,140.48,6.12]
[1727908360109,1.0,140.53,140.48,6.12]
[1727908360811,3.5594,140.5,140.48,6.12]
[1727908361113,1.0,140.53,140.48,6.12]
[1727908361613,7.1,140.53,140.45,0.12502]
[1727908361817,3.5596,140.49,140.46,3.56]
[1727908362013,3.5596,140.49,140.45,17.23502]
[1727908362214,7.1,140.53,140.45,17.23502]
[1727908362615,3.5593,140.5,140.45,17.23502]
[1727908363418,1.0,140.53,140.47,17.11]
[1727908363714,1.0,140.53,140.48,6.1]
[1727908363913,4.5586,140.53,140.5,3.559]
[1727908364421,4.5586,140.53,140.48,6.1]
[1727908364718,4.5586,140.53,140.49,17.11]
[1727908364909,4.5586,140.53,140.5,3.5591]
[1727908365717,1.0,140.53,140.52,3.5587]
[1727908365917,1.0,140.53,140.49,21.91928721]
[1727908366320,1.0,140.53,140.49,18.4377]
[1727908366821,4.5584,140.53,140.5,3.559]
[1727908367016,4.5584,140.53,140.49,18.4377]
[1727908367917,4.5584,140.53,140.5,3.5592]
[1727908368111,1.0,140.53,140.49,18.4377]
[1727908368309,1.0,140.53,140.49,1.3277]
[1727908368713,4.5586,140.53,140.49,1.3277]
[1727908368914,1.0,140.53,140.49,1.3277]
[1727908369119,1.0,140.53,140.5,3.5591]
[1727908369717,1.0,140.53,140.46,17.11]
[1727908369916,1.0,140.53,140.47,6.1]
[1727908370423,3.5596,140.49,140.47,6.1]
[1727908370619,3.5596,140.49,140.46,20.6701]
[1727908372417,1.0,140.53,140.45,6.22502]
[1727908372625,17.11,140.5,140.45,0.12502]
[1727908372828,23.21,140.5,140.45,0.12502]
[1727908373325,3.5602,140.46,140.45,0.12502]
[1727908376621,6.1,140.5,140.45,0.12502]
[1727908376817,26.8956,140.52,140.45,0.12502]
[1727908376818,3.5598,140.48,140.45,3.68542]
[1727908377519,3.5596,140.49,140.46,3.5601]
[1727908377725,8.7678,140.52,140.45,0.12502]
[1727908378431,3.5592,140.5,140.45,0.12502]
[1727908379018,3.5592,140.5,140.46,3.5601]
[1727908379226,7.4373,140.52,140.46,3.5601]
[1727908379425,7.4373,140.52,140.46,17.11]
[1727908379426,6.1,140.52,140.46,17.11]
[1727908379727,6.1,140.52,140.46,23.21]
[1727908379927,3.5593,140.5,140.46,23.21]
[1727908380126,6.1,140.52,140.46,23.21]
[1727908380430,2.4175,140.53,140.46,23.21]
[1727908380930,3.5596,140.49,140.46,26.7702]
[1727908381126,3.5596,140.49,140.46,23.21]
[1727908381332,2.4175,140.53,140.47,3.5598]
[1727908381629,2.4175,140.53,140.46,23.21]
[1727908382133,3.5594,140.5,140.47,3.5599]
[1727908383130,3.5591,140.51,140.48,3.5597]
[1727908383327,2.4175,140.53,140.48,3.5597]
[1727908383719,2.4175,140.53,140.46,23.21]
[1727908383927,1.0,140.53,140.46,23.21]
[1727908384232,1.0,140.53,140.48,17.11]
[1727908384429,4.5586,140.53,140.5,3.5591]
[1727908384625,1.0,140.53,140.5,3.5591]
[1727908385327,4.5585,140.53,140.5,3.5591]
[1727908385534,1.0,140.53,140.51,3.5589]
[1727908385732,1.0,140.53,140.5,17.11]
[1727908386029,1.0,140.53,140.51,3.5588]
[1727908386221,1.0,140.53,140.5,17.11]
[1727908386529,1.0,140.53,140.52,17.11]
[1727908386725,1.0,140.53,140.52,20.6687]
[1727908389033,1.0,140.55,140.52,17.11]
[1727908389336,1.0,140.55,140.54,3.5582]
[1727908391032,1.0,140.55,140.54,20.6682]
[1727908391630,1.0,140.55,140.54,26.7482]
[1727908391859,0.12502,140.57,140.56,3.5577]
[1727908392143,1.0,140.6,140.56,20.61183869]
[1727908392339,1.0,140.6,140.59,17.11]
[1727908392543,1.0,140.6,140.58,23.19]
[1727908393046,1.0,140.6,140.58,26.747]
[1727908393242,1.0,140.6,140.58,23.19]
[1727908393437,1.0,140.6,140.59,17.11]
[1727908393742,1.0,140.6,140.59,20.6669]
[1727908396442,1.12502,140.63,140.59,17.11]
[1727908396749,1.12502,140.63,140.62,3.5562]
[1727908397449,1.0,140.65,140.57,8.82034353]
[1727908397744,17.11,140.64,140.57,0.12502]
[1727908397938,19.7903,140.64,140.57,0.12502]
[1727908398134,3.5562,140.62,140.57,0.12502]
[1727908398336,19.7903,140.64,140.57,0.12502]
[1727908398553,17.11,140.63,140.57,0.12502]
[1727908398748,3.5568,140.6,140.57,3.68242]
[1727908399354,3.5565,140.61,140.57,3.68242]
[1727908399553,4.0941,140.64,140.57,0.12502]
[1727908399751,17.11,140.63,140.57,0.12502]
[1727908400252,3.5569,140.6,140.57,0.12502]
[1727908401347,3.5569,140.6,140.57,3.68232]
[1727908404747,4.0941,140.64,140.57,0.12502]
[1727908405151,17.11,140.62,140.57,0.12502]
[1727908405350,3.60578094,140.63,140.57,0.12502]
[1727908405351,3.5572,140.58,140.57,0.12502]
[1727908405958,6.08,140.61,140.57,0.12502]
[1727908406956,3.5568,140.6,140.57,3.68232]
[1727908407159,10.1741,140.64,140.57,0.12502]
[1727908407551,3.5566,140.61,140.58,3.557]
[1727908407949,3.5559,140.63,140.6,3.5566]
[1727908408154,1.0,140.65,140.57,23.31502]
[1727908408753,1.0,140.65,140.59,3.5569]
[1727908409254,1.0,140.65,140.57,23.31502]
[1727908409450,3.5561,140.63,140.6,3.5566]
[1727908409849,3.5561,140.63,140.58,17.11]
[1727908410051,3.5558,140.64,140.61,3.5563]
[1727908411351,3.5558,140.64,140.62,3.5562]
[1727908411563,3.5558,140.64,140.58,17.11]
[1727908412159,3.556,140.63,140.6,3.5565]
[1727908414061,4.5555,140.65,140.62,3.5561]
[1727908414465,1.0,140.65,140.62,3.5561]
[1727908415069,3.5557,140.64,140.62,3.5561]
[1727908415868,4.5555,140.65,140.58,17.11]
[1727908416081,1.0,140.65,140.58,18.4649]
[1727908416468,3.5557,140.64,140.62,3.556]
[1727908416668,1.0,140.65,140.62,3.556]
[1727908417072,4.5555,140.65,140.62,3.556]
[1727908419465,3.5559,140.63,140.61,9.6364]
[1727908419986,3.5558,140.64,140.61,9.6364]
[1727908421381,1.0,140.65,140.61,6.08]
[1727908421575,1.0,140.65,140.63,17.11]
[1727908423368,1.0,140.65,140.59,17.11]
[1727908423565,1.0,140.65,140.59,6.08]
[1727908423776,3.556,140.63,140.58,3.5571]
[1727908424083,17.11,140.64,140.57,0.12502]
[1727908424465,3.5571,140.59,140.57,0.12502]
[1727908424670,17.11,140.64,140.57,0.12502]
[1727908425374,10.57856586,140.65,140.57,0.12502]
[1727908425678,17.11,140.62,140.57,0.12502]
[1727908426268,6.08,140.61,140.51,0.12502]
[1727908426574,6.08,140.6,140.51,0.12502]
[1727908426874,19.821,140.61,140.51,17.23502]
[1727908427076,6.08,140.6,140.51,17.23502]
[1727908427579,3.5573,140.58,140.54,3.558]
[1727908427774,8.791,140.61,140.53,17.11]
[1727908427973,8.791,140.61,140.53,23.19]
[1727908428278,3.557,140.59,140.56,3.5575]
[1727908428481,1.3548,140.61,140.54,17.11]
[1727908428671,3.5569,140.6,140.56,3.5577]
[1727908428873,1.3548,140.61,140.54,17.11]
[1727908430077,3.5572,140.59,140.55,3.5578]
[1727908432082,1.3548,140.61,140.55,3.5578]
[1727908432083,3.5572,140.58,140.55,3.5578]
[1727908432478,1.3548,140.61,140.55,3.5578]
[1727908432680,3.5565,140.61,140.57,3.5573]
[1727908435081,3.5563,140.62,140.58,3.5571]
[1727908435997,0.12502,140.63,140.58,3.5571]
[1727908436283,3.5564,140.61,140.58,3.5571]
[1727908436979,0.12502,140.63,140.56,17.11]
[1727908437186,3.5562,140.62,140.59,3.5567]
[1727908437786,3.68102,140.63,140.6,3.5567]
[1727908438084,0.12502,140.63,140.58,17.11]
[1727908438681,3.68102,140.63,140.6,3.5565]
[1727908439982,3.5566,140.61,140.58,3.5571]
[1727908440190,0.12502,140.63,140.57,6.08]
[1727908440400,17.23502,140.63,140.57,6.08]
[1727908440692,17.11,140.61,140.51,17.23502]
[1727908440890,17.11,140.61,140.52,6.08]
[1727908441096,3.5579,140.56,140.53,3.5583]
[1727908441287,1.4222,140.6,140.52,6.08]
[1727908441490,18.5322,140.6,140.52,6.08]
[1727908441995,1.4222,140.6,140.52,6.08]
[1727908442187,3.5576,140.57,140.54,3.558]
[1727908442689,17.11,140.58,140.52,3.5585]
[1727908442884,23.19,140.58,140.51,6.20502]
[1727908443086,23.19,140.58,140.51,0.12502]
[1727908443287,3.5584,140.54,140.51,3.68382]
[1727908443492,23.19,140.58,140.51,0.12502]
[1727908443682,17.11,140.56,140.51,0.12502]
[1727908444191,1.4201,140.62,140.52,23.19]
[1727908444392,1.3481,140.61,140.52,23.19]
[1727908444989,1.3481,140.61,140.54,3.5582]
[1727908445990,3.5576,140.57,140.54,3.5582]
[1727908446785,17.11,140.59,140.52,17.11]
[1727908447004,1.3481,140.61,140.51,0.12502]
[1727908447005,17.11,140.57,140.51,0.12502]
[1727908447299,6.08,140.58,140.51,0.12502]
[1727908447300,3.5587,140.52,140.51,0.12502]
[1727908447601,6.08,140.58,140.51,0.12502]
[1727908447602,17.11,140.58,140.51,0.12502]
[1727908447787,6.08,140.57,140.51,0.12502]
[1727908448097,6.08,140.6,140.51,0.12502]
[1727908448299,6.08,140.6,140.51,2.80272]
[1727908448505,3.5574,140.58,140.53,3.5583]
[1727908448690,6.08,140.6,140.53,3.5583]
[1727908448891,17.11,140.59,140.53,3.5583]
[1727908449198,3.5576,140.57,140.54,3.5582]
[1727908449886,3.5576,140.57,140.51,2.80272]
[1727908450496,3.5576,140.57,140.51,10.09018581]
[1727908450802,3.5583,140.54,140.51,7.41248581]
[1727908451001,26.71845499,140.56,140.51,0.12502]
[1727908451296,28.10525499,140.56,140.51,0.12502]
[1727908451498,1.399,140.55,140.51,0.12502]
[1727908451700,3.5587,140.52,140.51,0.12502]
[1727908457002,1.3868,140.56,140.51,0.12502]
[1727908457201,6.06,140.57,140.51,0.12502]
[1727908457591,3.5582,140.54,140.52,3.5586]
[1727908459203,23.17,140.59,140.51,17.23502]
[1727908459399,6.06,140.59,140.51,17.23502]
[1727908460309,3.5578,140.56,140.53,3.5582]
[1727908463405,6.06,140.59,140.51,20.79392]
[1727908463705,6.06,140.59,140.51,3.68392]
[1727908464013,3.5585,140.53,140.51,0.12502]
[1727908464201,17.11,140.58,140.51,0.12502]
[1727908464713,3.58276643,140.57,140.51,0.12502]
[1727908465005,17.11,140.58,140.51,0.12502]
[1727908465406,17.11,140.58,140.51,3.68382]
[1727908465804,17.11,140.58,140.51,0.12502]
[1727908466102,3.5581,140.55,140.52,3.5585]
[1727908466904,6.06,140.59,140.52,3.5585]
[1727908467216,3.5582,140.54,140.52,3.5585]
[1727908467714,3.5578,140.56,140.53,3.5583]
[1727908467900,3.5578,140.56,140.51,24.53168289]
[1727908468105,3.5578,140.56,140.51,17.23502]
[1727908468303,3.5578,140.56,140.51,24.53168289]
[1727908468621,3.5578,140.56,140.53,3.5583]
[1727908471412,27.2707,140.6,140.51,17.23502]
[1727908471606,27.2707,140.6,140.51,24.53066238]
[1727908471810,27.2707,140.6,140.51,17.23502]
[1727908472013,3.5581,140.55,140.53,3.5584]
[1727908472603,3.5578,140.56,140.54,3.5582]
[1727908474808,3.5573,140.58,140.53,23.17]
[1727908475510,3.5573,140.58,140.55,3.5578]
[1727908475703,8.788,140.6,140.55,3.5578]
[1727908476015,3.5575,140.57,140.55,3.5578]
[1727908477913,3.5574,140.58,140.55,3.5578]
[1727908481119,3.5574,140.57,140.55,3.5578]
[1727908481319,25.898,140.6,140.53,13.35686561]
[1727908481511,25.898,140.6,140.53,10.85526561]
[1727908481712,3.5578,140.56,140.53,7.29783057]
[1727908482115,3.5578,140.56,140.52,1.3969]
[1727908482314,3.5578,140.56,140.53,3.5584]
[1727908483311,25.898,140.6,140.53,3.5584]
[1727908483521,3.5579,140.55,140.53,3.5584]
[1727908484810,25.898,140.6,140.52,1.3969]
[1727908485116,25.898,140.6,140.54,3.558]
[1727908485507,10.94,140.58,140.54,3.558]
[1727908485906,3.5578,140.56,140.54,3.558]
[1727908486516,3.5578,140.56,140.53,10.94]
[1727908486708,3.5578,140.56,140.53,14.4983]
[1727908487113,3.5578,140.56,140.53,21.80158359]
[1727908487423,3.5578,140.56,140.53,14.4983]
[1727908488626,10.94,140.58,140.52,12.3369]
[1727908488821,10.94,140.55,140.53,7.30619549]
[1727908489022,15.9015,140.6,140.51,0.12502]
[1727908489023,10.94,140.54,140.51,0.12502]
[1727908489225,14.4987,140.52,140.51,0.12502]
[1727908489621,10.94,140.52,140.45,11.81230453]
[1727908489926,3.56,140.47,140.46,7.30999817]
[1727908490525,3.5602,140.46,140.45,0.12502]
[1727908491620,3.5602,140.46,140.41,14.5013]
[1727908491621,3.5614,140.42,140.4,1.001]
[1727908491816,23.16,140.46,140.4,4.5627]
[1727908492118,3.5605,140.45,140.4,1.001]
[1727908492621,3.5605,140.45,140.42,3.5611]
[1727908492821,3.5601,140.47,140.41,17.1]
[1727908493211,6.06,140.5,140.42,23.16]